bitfinex-derivatives/quotes_BTCF0:USTF0_20250527
["timestamp","ask_amount","ask_price","bid_price","bid_amount"]
[1748365023317,0.89530176,110090.0,110080.0,0.20589939]
[1748365023497,0.0907839,110100.0,110080.0,0.48660689]
[1748365023698,0.00013626,110100.0,110080.0,1.30032745]
[1748365023898,0.00012,110100.0,110090.0,2.15184456]
[1748365024203,0.00012,110100.0,110090.0,0.21264]
[1748365024204,0.00020157,110100.0,110090.0,0.21264]
[1748365024408,0.54244327,110100.0,110090.0,0.453472]
[1748365024608,0.54256327,110100.0,110090.0,1.28896]
[1748365024913,0.54256327,110100.0,110090.0,0.350832]
[1748365025216,1.22412626,110100.0,110090.0,0.0187599]
[1748365025514,0.5445708,110100.0,110090.0,1.04251646]
[1748365025697,0.0022091,110100.0,110090.0,1.92411646]
[1748365025901,0.0020891,110100.0,110090.0,2.28491646]
[1748365026100,0.5445708,110100.0,110090.0,0.2187599]
[1748365026309,0.7057708,110100.0,110090.0,0.0187599]
[1748365026512,1.1324817,110100.0,110090.0,0.0187599]
[1748365026815,0.6456817,110100.0,110090.0,0.0187599]
[1748365027114,0.46520766,110100.0,110090.0,0.2703381]
[1748365027315,0.05418766,110100.0,110090.0,0.7519701]
[1748365027613,0.36093626,110110.0,110090.0,1.1019701]
[1748365027801,0.63231426,110150.0,110130.0,0.2268884]
[1748365028003,0.63231426,110150.0,110140.0,0.2841757]
[1748365028004,0.67767756,110150.0,110140.0,0.2841757]
[1748365028202,0.67767756,110150.0,110140.0,0.60710026]
[1748365028203,0.49619826,110150.0,110140.0,0.60710026]
[1748365028513,0.67767756,110150.0,110140.0,0.60710026]
[1748365028707,0.49629701,110150.0,110140.0,0.60710026]
[1748365029014,0.03809701,110150.0,110140.0,1.44868826]
[1748365029314,0.03949539,110160.0,110150.0,0.1814793]
[1748365029518,0.03949539,110160.0,110150.0,0.77440386]
[1748365029701,0.0019,110170.0,110160.0,0.1814629]
[1748365030011,0.00202,110170.0,110160.0,2.28255782]
[1748365030209,0.00202,110170.0,110160.0,2.37332981]
[1748365030402,0.00202,110170.0,110160.0,1.9789229]
[1748365030604,0.00202,110170.0,110160.0,2.36932981]
[1748365031028,0.00202,110170.0,110160.0,2.61932981]
[1748365031314,0.00502,110170.0,110160.0,3.22768981]
[1748365031815,0.00602,110170.0,110160.0,3.26752981]
[1748365032605,0.00602,110170.0,110160.0,2.73664981]
[1748365032806,0.00602,110170.0,110160.0,3.07800981]
[1748365033006,0.00602,110170.0,110160.0,3.21800981]
[1748365033219,0.00302,110170.0,110160.0,3.21792981]
[1748365033419,0.00502,110170.0,110160.0,3.21792981]
[1748365033727,0.00502,110170.0,110160.0,2.43664981]
[1748365034015,0.00502,110170.0,110160.0,2.53992981]
[1748365034211,0.05502,110170.0,110160.0,2.53992981]
[1748365034605,0.5972664,110170.0,110160.0,0.92914981]
[1748365034815,0.6464664,110170.0,110160.0,0.52691492]
[1748365035010,0.6564664,110170.0,110160.0,0.52691492]
[1748365035308,0.6564664,110170.0,110160.0,0.70837782]
[1748365035713,0.6464664,110170.0,110160.0,0.70837782]
[1748365035901,0.10422,110170.0,110160.0,1.29917782]
[1748365036104,0.10422,110170.0,110160.0,1.33447782]
[1748365036315,0.1041,110170.0,110160.0,1.33447782]
[1748365036517,0.05502,110170.0,110160.0,1.42524981]
[1748365036814,0.0549,110170.0,110160.0,1.85300981]
[1748365037115,0.00502,110170.0,110160.0,1.85300981]
[1748365037817,0.05043626,110180.0,110170.0,0.181447]
[1748365038016,0.00013626,110180.0,110170.0,0.937547]
[1748365038216,0.00013626,110180.0,110170.0,1.028311]
[1748365038714,0.00025626,110180.0,110170.0,1.028311]
[1748365039416,0.00225626,110180.0,110170.0,1.554471]
[1748365039720,0.10015626,110180.0,110170.0,1.43062592]
[1748365040215,0.09815626,110180.0,110170.0,1.43062592]
[1748365040612,0.09915626,110180.0,110170.0,1.43062592]
[1748365041005,0.09815626,110180.0,110170.0,1.32734592]
[1748365041204,0.09815626,110180.0,110170.0,1.85882592]
[1748365043117,0.09815626,110180.0,110170.0,1.86352592]
[1748365048119,0.27958656,110180.0,110170.0,0.903247]
[1748365048425,0.64038656,110180.0,110170.0,0.61608162]
[1748365048618,0.27958656,110180.0,110170.0,0.71936162]
[1748365049618,0.28058656,110180.0,110170.0,0.71936162]
[1748365050415,0.09915626,110180.0,110170.0,0.71936162]
[1748365050616,0.09915626,110180.0,110170.0,0.78936162]
[1748365050912,0.09915626,110180.0,110170.0,1.14916162]
[1748365051316,0.09903626,110180.0,110170.0,1.14916162]
[1748365051823,0.09915626,110180.0,110170.0,1.14916162]
[1748365052017,0.09915626,110180.0,110170.0,1.0782326]
[1748365052212,0.73617489,110200.0,110190.0,0.1814138]
[1748365052430,0.73617489,110200.0,110190.0,0.6373997]
[1748365052627,0.73629489,110200.0,110190.0,0.6373997]
[1748365054328,0.73729489,110200.0,110190.0,0.6373997]
[1748365054627,0.69194159,110200.0,110190.0,0.6373997]
[1748365054829,0.46506259,110200.0,110190.0,0.6373997]
[1748365055018,0.46818259,110200.0,110190.0,0.6373997]
[1748365055211,0.10738259,110200.0,110190.0,0.7073997]
[1748365055410,0.21056259,110200.0,110190.0,0.9981997]
[1748365055625,0.21068259,110200.0,110190.0,1.2881997]
[1748365055824,0.20956259,110200.0,110190.0,1.2881997]
[1748365056627,0.20968259,110200.0,110190.0,1.0981997]
[1748365057723,0.24713495,110200.0,110190.0,1.0981997]
[1748365059227,0.20968259,110200.0,110190.0,1.3481997]
[1748365059427,0.20956259,110200.0,110190.0,1.4456997]
[1748365059734,0.20968259,110200.0,110190.0,1.4456997]
[1748365060023,0.20968259,110200.0,110190.0,1.3481997]
[1748365060223,0.2471677,110200.0,110190.0,1.3481997]
[1748365060822,0.2461677,110200.0,110190.0,1.3491997]
[1748365061134,0.24616411,110200.0,110190.0,1.1391997]
[1748365061924,0.24416411,110200.0,110190.0,1.1391997]
[1748365062230,0.24280152,110200.0,110190.0,0.9577859]
[1748365062525,0.24280152,110200.0,110190.0,1.1391997]
[1748365064233,0.24280152,110200.0,110190.0,1.3791997]
[1748365064423,0.24280152,110200.0,110190.0,1.4309997]
[1748365064927,0.05033626,110210.0,110200.0,0.1813975]
[1748365065129,0.05033626,110210.0,110200.0,1.60172507]
[1748365065430,0.05033626,110210.0,110200.0,1.42061917]
[1748365066019,0.05133626,110210.0,110200.0,1.42061917]
[1748365066239,0.05145626,110210.0,110200.0,1.42061917]
[1748365066428,0.05145626,110210.0,110200.0,1.39496823]
[1748365066636,0.05145626,110210.0,110200.0,0.96316823]
[1748365066932,0.05145626,110210.0,110200.0,1.16316823]
[1748365067834,0.3627,110230.0,110220.0,0.1813645]
[1748365068021,0.83968,110230.0,110220.0,0.6265904]
[1748365068326,0.5943481,110230.0,110220.0,0.6265904]
[1748365068514,0.05232,110230.0,110220.0,0.64043103]
[1748365068716,0.05232,110230.0,110220.0,0.66043103]
[1748365068930,0.0522,110230.0,110220.0,0.7027468]
[1748365069118,0.10142,110230.0,110220.0,0.5722409]
[1748365069320,0.10142,110230.0,110220.0,0.8049468]
[1748365069527,0.1033,110230.0,110220.0,1.4957468]
[1748365069732,0.10342,110230.0,110220.0,1.4957468]
[1748365069931,0.00013626,110240.0,110230.0,0.181348]
[1748365070132,0.00013626,110240.0,110230.0,1.2947539]
[1748365070627,0.18158776,110240.0,110230.0,1.2947539]
[1748365070828,0.00025626,110240.0,110230.0,1.2947539]
[1748365071336,0.18158826,110240.0,110230.0,1.2947539]
[1748365071631,0.18458826,110240.0,110230.0,1.2947539]
[1748365072020,0.00325626,110240.0,110230.0,1.2947539]
[1748365072221,0.18458826,110240.0,110230.0,1.2947539]
[1748365072638,0.54538826,110240.0,110230.0,0.9339539]
[1748365072831,0.54538826,110240.0,110230.0,0.7464739]
[1748365073131,0.18458826,110240.0,110230.0,0.7464739]
[1748365073329,0.28078826,110240.0,110230.0,0.7464739]
[1748365073636,0.09945626,110240.0,110230.0,1.4372739]
[1748365073836,0.09933626,110240.0,110230.0,1.4372739]
[1748365074134,0.09945626,110240.0,110230.0,1.4372739]
[1748365074836,0.09845626,110240.0,110230.0,1.4372739]
[1748365075029,0.09845626,110240.0,110230.0,1.4382739]
[1748365075229,0.09645626,110240.0,110230.0,1.4382739]
[1748365076320,0.04833626,110240.0,110230.0,1.4382739]
[1748365076527,0.00025626,110240.0,110230.0,1.48058967]
[1748365076832,0.00013626,110240.0,110230.0,1.48058967]
[1748365077023,0.00025626,110240.0,110230.0,1.48058967]
[1748365077827,0.00013626,110240.0,110230.0,1.48058967]
[1748365078222,0.00025626,110240.0,110230.0,1.48058967]
[1748365080130,0.00025626,110240.0,110230.0,1.84138967]
[1748365081225,0.00025626,110240.0,110230.0,2.26782967]
[1748365083335,0.00025626,110240.0,110230.0,2.26882967]
[1748365086033,0.00025626,110240.0,110230.0,2.27325198]
[1748365087029,0.00025626,110240.0,110230.0,1.74429198]
[1748365087234,0.00025626,110240.0,110230.0,2.04046608]
[1748365087545,0.10295626,110240.0,110230.0,2.27313198]
[1748365087929,0.10295626,110240.0,110230.0,1.74429198]
[1748365088236,0.10295626,110240.0,110230.0,2.27313198]
[1748365089336,0.10295626,110240.0,110230.0,1.74429198]
[1748365089537,0.10295626,110240.0,110230.0,2.27313198]
[1748365089740,0.10295626,110240.0,110230.0,2.04042608]
[1748365089949,0.10295626,110240.0,110230.0,2.27313198]
[1748365091441,0.28428876,110240.0,110230.0,0.78998608]
[1748365091644,0.10295626,110240.0,110230.0,0.69246608]
[1748365092837,0.10295626,110240.0,110230.0,0.92517198]
[1748365093037,0.28428876,110240.0,110230.0,0.92517198]
[1748365093240,0.28428876,110240.0,110230.0,0.82527198]
[1748365093443,0.64508876,110240.0,110230.0,0.45244608]
[1748365093752,0.64508876,110240.0,110230.0,0.68515198]
[1748365094048,0.10295626,110240.0,110230.0,0.68515198]
[1748365094250,0.28428876,110240.0,110230.0,0.74585198]
[1748365094447,0.10295626,110240.0,110230.0,0.51114608]
[1748365094637,0.28428876,110240.0,110230.0,0.73385198]
[1748365094833,0.28428876,110240.0,110230.0,0.94149198]
[1748365095043,0.28428876,110240.0,110230.0,0.84385198]
[1748365095535,0.10295626,110240.0,110230.0,0.89505198]
[1748365095736,0.28428876,110240.0,110230.0,0.89505198]
[1748365096445,0.28428876,110240.0,110230.0,0.79315198]
[1748365097646,0.28428876,110240.0,110230.0,0.69079198]
[1748365097851,0.28428876,110240.0,110230.0,0.79315198]
[1748365099243,0.28428876,110240.0,110230.0,0.84429198]
[1748365099443,0.28428876,110240.0,110230.0,1.01429198]
[1748365099742,0.28428876,110240.0,110230.0,0.78299198]
[1748365099942,0.10295626,110240.0,110230.0,0.80299198]
[1748365100450,0.10283626,110240.0,110230.0,0.80299198]
[1748365100639,0.05055626,110240.0,110230.0,1.51379198]
[1748365100837,0.05043626,110240.0,110230.0,1.57625397]
[1748365101037,0.05055626,110240.0,110230.0,1.57625397]
[1748365101448,0.05043626,110240.0,110230.0,1.57625397]
[1748365101650,0.28438876,110240.0,110230.0,0.51290807]
[1748365101842,0.73518876,110240.0,110230.0,0.40813031]
[1748365102043,0.77194575,110240.0,110230.0,0.45053357]
[1748365102445,0.77194575,110240.0,110230.0,0.34817357]
[1748365102651,0.77194575,110240.0,110230.0,0.45053357]
[1748365103151,0.77194575,110240.0,110230.0,0.34817357]
[1748365103343,1.19822575,110240.0,110230.0,0.45053357]
[1748365103544,1.19822575,110240.0,110230.0,0.40813031]
[1748365103743,1.19822134,110240.0,110230.0,0.40813031]
[1748365103954,1.19822134,110240.0,110230.0,0.30577031]
[1748365104147,1.19822134,110240.0,110230.0,0.40813031]
[1748365104548,1.20022134,110240.0,110230.0,0.40813031]
[1748365104748,1.11022134,110240.0,110230.0,0.40813031]
[1748365105557,1.11222134,110240.0,110230.0,0.40813031]
[1748365105938,1.11322134,110240.0,110230.0,0.40813031]
[1748365107356,0.93188884,110240.0,110230.0,0.40813031]
[1748365108051,0.93122468,110240.0,110230.0,0.40813031]
[1748365108750,1.11255718,110240.0,110230.0,0.40813031]
[1748365109148,1.11255718,110240.0,110230.0,0.30577031]
[1748365109348,1.12255718,110240.0,110230.0,0.12442231]
[1748365109552,1.43255718,110240.0,110230.0,0.30577121]
[1748365110460,0.64547718,110240.0,110230.0,0.30577121]
[1748365110659,0.14414468,110240.0,110230.0,0.53847711]
[1748365110951,0.10793626,110240.0,110230.0,1.15638037]
[1748365111161,0.10805626,110240.0,110230.0,1.15638037]
[1748365112252,0.05555626,110240.0,110230.0,1.21876332]
[1748365112461,0.05543626,110240.0,110230.0,1.21876332]
[1748365112758,0.05543626,110240.0,110230.0,1.36947474]
[1748365113152,0.05555626,110240.0,110230.0,1.36947474]
[1748365113551,0.05455626,110240.0,110230.0,1.36947474]
[1748365114258,0.05055626,110240.0,110230.0,1.36947474]
[1748365115349,0.05055626,110240.0,110230.0,1.41878332]
[1748365115350,0.05043626,110240.0,110230.0,1.41878332]
[1748365115557,0.00025626,110240.0,110230.0,1.36947474]
[1748365115862,0.00025626,110240.0,110230.0,1.31397711]
[1748365116859,0.18158876,110240.0,110230.0,0.97887121]
[1748365117058,0.23298876,110240.0,110230.0,0.95317711]
[1748365117257,0.10405626,110240.0,110230.0,0.95317711]
[1748365117457,0.28538866,110240.0,110230.0,1.21157711]
[1748365117658,0.28538866,110240.0,110230.0,1.31397711]
[1748365118054,0.10405626,110240.0,110230.0,1.31397711]
[1748365118259,0.28538876,110240.0,110230.0,1.31397711]
[1748365118464,0.10405626,110240.0,110230.0,1.21157711]
[1748365118657,0.05165626,110240.0,110230.0,1.36947474]
[1748365118965,0.00013626,110240.0,110230.0,1.36947474]
[1748365119160,0.00025626,110240.0,110230.0,1.36947474]
[1748365124362,0.00025626,110240.0,110230.0,1.41880327]
[1748365125164,0.00012,110240.0,110230.0,1.2122017]
[1748365125362,0.05366146,110250.0,110240.0,0.1813324]
[1748365125666,0.05366146,110250.0,110240.0,0.7720465]
[1748365125867,0.05378146,110250.0,110240.0,1.0047524]
[1748365126064,0.8031769,110260.0,110250.0,0.181316]
[1748365126065,0.0534,110260.0,110250.0,0.181316]
[1748365126363,0.0534,110260.0,110250.0,1.25471814]
[1748365126966,0.0534,110260.0,110250.0,1.28495884]
[1748365127464,0.05352,110260.0,110250.0,1.2284626]
[1748365127667,0.00202,110260.0,110250.0,1.2284626]
[1748365127962,0.0019,110260.0,110250.0,1.28495884]
[1748365128267,0.00202,110260.0,110250.0,1.2284626]
[1748365129457,0.00202,110260.0,110250.0,1.28495884]
[1748365130662,0.00202,110260.0,110250.0,1.28938115]
[1748365131059,0.00202,110260.0,110250.0,1.23288491]
[1748365132259,0.00202,110260.0,110250.0,1.23319035]
[1748365132860,0.00202,110260.0,110250.0,1.46589625]
[1748365133063,0.00202,110260.0,110250.0,1.65239249]
[1748365133371,0.0019,110260.0,110250.0,1.70549249]
[1748365133560,0.00202,110260.0,110250.0,1.70549249]
[1748365133869,0.0019,110290.0,110280.0,0.1812667]
[1748365134074,0.3358511,110290.0,110280.0,0.84145515]
[1748365134263,0.1546,110290.0,110280.0,0.84145515]
[1748365134665,0.15472,110290.0,110280.0,0.84145515]
[1748365135063,0.16072,110290.0,110280.0,0.84145515]
[1748365135265,0.10942,110290.0,110280.0,0.84145515]
[1748365135565,0.10942,110290.0,110280.0,0.90018845]
[1748365135776,0.10942,110290.0,110280.0,1.08145515]
[1748365136371,0.05882,110290.0,110280.0,1.08145515]
[1748365136575,0.11352,110290.0,110280.0,1.08145515]
[1748365137171,0.11352,110290.0,110280.0,1.09492191]
[1748365138461,0.2947703,110290.0,110280.0,1.09492191]
[1748365138865,0.11352,110290.0,110280.0,1.09492191]
[1748365139865,0.2947703,110290.0,110280.0,1.09492191]
[1748365140060,0.2937703,110290.0,110280.0,1.09492191]
[1748365140474,0.2917703,110290.0,110280.0,1.09492191]
[1748365140772,0.3441703,110290.0,110280.0,1.09492191]
[1748365140971,0.3441703,110290.0,110280.0,1.52084191]
[1748365141167,0.3441703,110290.0,110280.0,1.47857562]
[1748365141364,0.3441703,110290.0,110280.0,0.95041562]
[1748365141673,0.3441703,110290.0,110280.0,0.51658892]
[1748365141674,0.7849703,110290.0,110280.0,0.51658892]
[1748365141869,0.7849703,110290.0,110280.0,0.69785562]
[1748365142061,0.7849703,110290.0,110280.0,0.69171126]
[1748365144565,0.7049703,110290.0,110280.0,0.69171126]
[1748365145575,0.7049703,110290.0,110280.0,0.70171126]
[1748365145874,0.7049703,110290.0,110280.0,0.70613357]
[1748365148171,0.7049703,110290.0,110280.0,0.60389357]
[1748365148370,0.7049703,110290.0,110280.0,0.34915577]
[1748365148673,0.9749703,110290.0,110280.0,0.44139577]
[1748365149272,0.9749703,110290.0,110280.0,0.66795731]
[1748365149576,0.7649703,110290.0,110280.0,0.44139577]
[1748365151772,0.7649703,110290.0,110280.0,0.26835342]
[1748365151967,0.7049703,110290.0,110280.0,0.32277573]
[1748365152167,1.0149703,110290.0,110280.0,0.35095199]
[1748365153970,1.0149703,110290.0,110280.0,0.57751353]
[1748365154973,1.4406903,110290.0,110280.0,0.57751353]
[1748365155867,1.4406903,110290.0,110280.0,0.59115271]
[1748365156175,1.4406903,110290.0,110280.0,0.48891271]
[1748365156369,1.4406903,110290.0,110280.0,0.09623775]
[1748365156572,1.4406903,110290.0,110280.0,0.06806149]
[1748365156771,1.4406903,110290.0,110280.0,0.24932819]
[1748365158268,1.4406903,110290.0,110280.0,0.06806149]
[1748365158979,1.4406903,110290.0,110280.0,0.05442231]
[1748365159280,1.5313663,110290.0,110280.0,0.05442231]
[1748365161470,0.1812667,110280.0,110270.0,0.4207835]
[1748365161669,0.8133667,110280.0,110270.0,0.4607835]
[1748365161880,1.2390067,110280.0,110270.0,0.4607835]
[1748365162079,1.2390067,110280.0,110270.0,0.5248835]
[1748365162773,1.2430067,110280.0,110270.0,0.5248835]
[1748365165080,1.2430067,110280.0,110270.0,0.5859835]
[1748365166177,1.2430067,110280.0,110270.0,0.35942196]
[1748365166377,1.2430067,110280.0,110270.0,0.62994994]
[1748365168576,1.2430067,110280.0,110270.0,0.5859835]
[1748365169183,1.2430067,110280.0,110270.0,0.5406634]
[1748365169373,1.2430067,110280.0,110270.0,0.39176154]
[1748365169684,1.2430067,110280.0,110270.0,0.43573118]
[1748365170386,1.2430067,110280.0,110270.0,0.61701438]
[1748365170881,0.8173667,110280.0,110270.0,0.61701438]
[1748365171073,1.2429267,110280.0,110270.0,0.61701438]
[1748365172684,1.2429267,110280.0,110270.0,0.43777468]
[1748365172976,1.2429267,110280.0,110270.0,0.50777468]
[1748365173182,1.4029267,110280.0,110270.0,0.46380504]
[1748365173782,1.4029267,110280.0,110270.0,0.28252184]
[1748365173985,1.4029267,110280.0,110270.0,0.46380504]
[1748365174575,1.4029267,110280.0,110270.0,0.28252184]
[1748365175079,1.4029267,110280.0,110270.0,0.46380494]
[1748365175283,1.4029267,110280.0,110270.0,0.46822725]
[1748365175984,1.4029267,110280.0,110270.0,0.41144415]
[1748365176178,1.4028867,110280.0,110270.0,0.59272725]
[1748365176580,1.4028867,110280.0,110270.0,0.19892231]
[1748365177083,1.4028867,110280.0,110270.0,0.42548385]
[1748365177385,1.4028867,110280.0,110270.0,1e-08]
[1748365177571,1.45940958,110280.0,110270.0,1e-08]
[1748365178073,1.54415809,110280.0,110270.0,1e-08]
[1748365178271,1.45940958,110280.0,110270.0,1e-08]
[1748365178975,0.1812996,110260.0,110250.0,0.6793255]
[1748365179177,1.0775796,110260.0,110250.0,0.86332841]
[1748365179374,1.1994796,110260.0,110250.0,0.86332841]
[1748365181479,1.1994796,110260.0,110250.0,0.90572462]
[1748365181681,1.1994796,110260.0,110250.0,0.90570704]
[1748365181986,0.1812996,110260.0,110250.0,0.91570704]
[1748365182187,0.1812996,110260.0,110250.0,0.82639291]
[1748365182485,0.2440196,110260.0,110250.0,0.82639291]
[1748365184491,0.6148196,110260.0,110250.0,0.72574001]
[1748365184691,0.6812196,110260.0,110250.0,0.72574001]
[1748365184990,0.6812196,110260.0,110250.0,0.31786247]
[1748365185187,0.6812196,110260.0,110250.0,0.72574001]
[1748365185881,0.3204196,110260.0,110250.0,0.72574001]
[1748365186389,0.7458996,110260.0,110250.0,0.72574001]
[1748365189484,0.7458996,110260.0,110250.0,0.73016232]
[1748365189884,0.7458996,110260.0,110250.0,0.49253452]
[1748365190079,1.1066996,110260.0,110250.0,0.82101606]
[1748365191995,0.7458996,110260.0,110250.0,0.82101606]
[1748365194887,0.3204196,110260.0,110250.0,0.82101606]
[1748365195089,0.7458196,110260.0,110250.0,0.82101606]
[1748365196389,0.7458196,110260.0,110250.0,0.86506713]
[1748365197095,0.7458196,110260.0,110250.0,0.82101606]
[1748365197299,0.7458196,110260.0,110250.0,0.86506924]
[1748365197701,0.7458196,110260.0,110250.0,0.82101606]
[1748365199500,0.7458196,110260.0,110250.0,0.71909606]
[1748365199799,0.7468196,110260.0,110250.0,0.71909606]
[1748365200191,0.14112,110260.0,110250.0,0.71909606]
[1748365200396,0.14112,110260.0,110250.0,1.08989606]
[1748365200397,0.0646,110260.0,110250.0,1.08989606]
[1748365200603,0.6713796,110260.0,110250.0,1.04749985]
[1748365200800,0.06472,110260.0,110250.0,1.24749985]
[1748365201101,0.00212,110260.0,110250.0,1.34789913]
[1748365201307,0.002,110260.0,110250.0,1.37839913]
[1748365201504,0.00212,110260.0,110250.0,1.37839913]
[1748365201698,0.1834196,110260.0,110250.0,1.37839913]
[1748365201899,0.00212,110260.0,110250.0,1.37839913]
[1748365202898,0.00212,110260.0,110250.0,1.37218806]
[1748365203107,0.1814196,110260.0,110250.0,1.54595841]
[1748365203407,0.2452196,110260.0,110250.0,1.54595841]
[1748365203606,0.2452196,110260.0,110250.0,1.44264454]
[1748365204110,0.2452196,110260.0,110250.0,1.32203902]
[1748365204406,0.2452196,110260.0,110250.0,1.37219605]
[1748365205203,0.2452196,110260.0,110250.0,1.37219961]
[1748365206009,0.2452196,110260.0,110250.0,1.37860281]
[1748365206395,0.06392,110260.0,110250.0,1.37860281]
[1748365206596,0.2452196,110260.0,110250.0,1.37860281]
[1748365206909,0.77487146,110270.0,110260.0,0.1812996]
[1748365207110,0.84077146,110270.0,110260.0,1.27288114]
[1748365208100,0.84077146,110270.0,110260.0,1.09158154]
[1748365208402,0.84077146,110270.0,110260.0,1.3078101]
[1748365208403,0.84177146,110270.0,110260.0,1.3078101]
[1748365208799,0.84277146,110270.0,110260.0,1.3078101]
[1748365210508,0.41745146,110270.0,110260.0,1.3078101]
[1748365210706,0.12823626,110270.0,110260.0,1.3078101]
[1748365210906,0.30963946,110270.0,110260.0,1.08124856]
[1748365211107,0.30963946,110270.0,110260.0,1.35798116]
[1748365211308,0.00225626,110270.0,110260.0,1.35798116]
[1748365211507,0.18353936,110270.0,110260.0,1.42188116]
[1748365211716,0.31133936,110270.0,110260.0,1.42188116]
[1748365212016,0.12905626,110270.0,110260.0,1.42188116]
[1748365212202,0.12905626,110270.0,110260.0,1.59188116]
[1748365212203,0.00125626,110270.0,110260.0,1.59188116]
[1748365212807,0.00125626,110270.0,110260.0,1.5417101]
[1748365213203,0.00025626,110270.0,110260.0,1.5417101]
[1748365213414,0.00025626,110270.0,110260.0,1.54168881]
[1748365213800,0.00013626,110270.0,110260.0,1.54168881]
[1748365214202,0.00025626,110270.0,110260.0,1.54168881]
[1748365216214,0.00025626,110270.0,110260.0,1.54196809]
[1748365216515,0.18153936,110270.0,110260.0,1.31540655]
[1748365216817,0.18153936,110270.0,110260.0,1.54196809]
[1748365217015,0.24503936,110270.0,110260.0,1.54196809]
[1748365217317,0.06375626,110270.0,110260.0,1.54196809]
[1748365217516,0.24503936,110270.0,110260.0,1.54196809]
[1748365219212,0.30853936,110270.0,110260.0,1.54196809]
[1748365220518,0.30853936,110270.0,110260.0,1.96708809]
[1748365220912,0.30853936,110270.0,110260.0,1.9715104]
[1748365221815,0.79933936,110270.0,110260.0,0.2809861]
[1748365222010,0.99933936,110270.0,110260.0,0.02827389]
[1748365222205,0.1812996,110260.0,110250.0,0.13091694]
[1748365222415,1.4760796,110260.0,110250.0,0.11176009]
[1748365222605,1.4760796,110260.0,110250.0,0.01000009]
[1748365222810,1.4760796,110260.0,110250.0,0.19131609]
[1748365223421,1.4770796,110260.0,110250.0,0.19131609]
[1748365224011,1.4770796,110260.0,110250.0,0.41787763]
[1748365224921,1.4780796,110260.0,110250.0,0.41787763]
[1748365225321,1.5411796,110260.0,110250.0,0.41787763]
[1748365225517,1.1611796,110260.0,110250.0,0.41787763]
[1748365225719,1.1611796,110260.0,110250.0,0.42787763]
[1748365226126,1.1612996,110260.0,110250.0,0.42787763]
[1748365226714,1.3812996,110260.0,110250.0,0.01000009]
[1748365226916,1.3812996,110260.0,110250.0,0.19131609]
[1748365227118,1.3812996,110260.0,110250.0,0.19131639]
[1748365229114,0.5954196,110260.0,110250.0,0.19131639]
[1748365229316,0.5952996,110260.0,110250.0,0.77867793]
[1748365229520,0.194,110260.0,110250.0,0.77867793]
[1748365229818,0.194,110260.0,110250.0,0.95334063]
[1748365229819,0.61908,110260.0,110250.0,0.95334063]
[1748365230221,0.61916,110260.0,110250.0,0.95334063]
[1748365230421,0.61916,110260.0,110250.0,1.01984063]
[1748365230630,0.19412,110260.0,110250.0,1.16984063]
[1748365231127,0.19312,110260.0,110250.0,1.16984063]
[1748365232033,0.19212,110260.0,110250.0,1.16984063]
[1748365233127,0.12902,110260.0,110250.0,1.00984063]
[1748365233331,0.1289,110260.0,110250.0,1.33983829]
[1748365233514,0.12902,110260.0,110250.0,1.33983829]
[1748365233827,0.12902,110260.0,110250.0,1.70063829]
[1748365234327,0.12902,110260.0,110250.0,1.70163829]
[1748365235325,0.12902,110260.0,110250.0,1.7060606]
[1748365235927,0.12902,110260.0,110250.0,1.7080606]
[1748365236628,0.12902,110260.0,110250.0,1.48149906]
[1748365236821,0.3103201,110260.0,110250.0,1.2090606]
[1748365237021,0.12902,110260.0,110250.0,1.1425606]
[1748365239528,0.3103201,110260.0,110250.0,1.1425606]
[1748365239726,0.12902,110260.0,110250.0,1.1425606]
[1748365240332,0.12902,110260.0,110250.0,1.2034606]
[1748365241027,0.12902,110260.0,110250.0,1.25366993]
[1748365241521,0.12902,110260.0,110250.0,1.2095722]
[1748365241727,0.12902,110260.0,110250.0,1.25366449]
[1748365241927,0.3103201,110260.0,110250.0,1.25366449]
[1748365242123,0.12902,110260.0,110250.0,1.25366449]
[1748365242426,0.12902,110260.0,110250.0,1.40566206]
[1748365242626,0.12902,110260.0,110250.0,1.71697836]
[1748365243321,0.29254626,110270.0,110260.0,0.1813001]
[1748365243322,0.00013626,110270.0,110260.0,0.1813001]
[1748365243526,0.06163626,110270.0,110260.0,1.6018171]
[1748365244722,0.06163626,110270.0,110260.0,1.55160781]
[1748365245935,0.06163626,110270.0,110260.0,1.55159996]
[1748365246634,0.24291986,110270.0,110260.0,1.55159996]
[1748365247726,0.24291986,110270.0,110260.0,1.25853842]
[1748365247927,0.25291986,110270.0,110260.0,0.63037008]
[1748365248138,0.24291986,110270.0,110260.0,0.74331018]
[1748365248639,0.30731986,110270.0,110260.0,0.74331018]
[1748365249033,0.30731986,110270.0,110260.0,1.10411018]
[1748365250033,0.73215986,110270.0,110260.0,1.11411018]
[1748365250540,0.73227986,110270.0,110260.0,1.11853249]
[1748365250738,0.73227986,110270.0,110260.0,0.95001308]
[1748365250939,0.83227986,110270.0,110260.0,0.95001308]
[1748365251234,0.73227986,110270.0,110260.0,0.95001308]
[1748365251641,0.73227986,110270.0,110260.0,0.94001308]
[1748365252142,0.30743996,110270.0,110260.0,0.95001308]
[1748365252328,0.30731996,110270.0,110260.0,1.07141308]
[1748365252526,0.30743996,110270.0,110260.0,1.07141308]
[1748365253431,0.30743996,110270.0,110260.0,1.11551458]
[1748365253832,0.30743996,110270.0,110260.0,1.18101458]
[1748365254234,0.30743996,110270.0,110260.0,1.11931458]
[1748365254437,0.30743996,110270.0,110260.0,1.11932072]
[1748365254835,0.30743996,110270.0,110260.0,1.13346606]
[1748365255737,0.30743996,110270.0,110260.0,1.19886606]
[1748365257747,0.12615626,110270.0,110260.0,1.19886606]
[1748365258334,0.12615626,110270.0,110260.0,1.38886606]
[1748365258738,0.12615626,110270.0,110260.0,1.388919]
[1748365259449,0.30743996,110270.0,110260.0,1.388919]
[1748365260148,0.12615626,110270.0,110260.0,1.388919]
[1748365260352,0.12603626,110270.0,110260.0,1.38266628]
[1748365260654,0.12615626,110270.0,110260.0,1.45312276]
[1748365261043,0.12615626,110270.0,110260.0,1.55643663]
[1748365262052,0.12615626,110270.0,110260.0,1.98115663]
[1748365262351,0.06453626,110270.0,110260.0,1.98115663]
[1748365262547,0.06465626,110270.0,110260.0,1.91070015]
[1748365262945,0.06465626,110270.0,110260.0,1.98140972]
[1748365263346,0.123,110280.0,110270.0,0.1812837]
[1748365263550,0.0019,110290.0,110280.0,0.1812672]
[1748365263758,0.063,110290.0,110280.0,1.8679272]
[1748365264050,0.06312,110290.0,110280.0,1.81139688]
[1748365264651,0.06312,110290.0,110280.0,1.8679012]
[1748365264851,0.22749716,110300.0,110290.0,0.1812508]
[1748365265038,0.22749716,110300.0,110290.0,1.43510832]
[1748365265245,0.40873156,110300.0,110290.0,1.43510832]
[1748365265656,0.16259716,110300.0,110290.0,1.43510832]
[1748365265856,0.10149716,110300.0,110290.0,1.42872452]
[1748365266159,0.10349716,110300.0,110290.0,1.60275022]
[1748365266852,0.0618,110320.0,110310.0,0.1792179]